[Event "Late-Titled-Tuesday-Blitz-July-09-2024"]
[Site "Chess.com"]
[Date "2024.07.09"]
[Round "1"]
[White "HPanesso"]
[Black "APOKALIPSA13"]
[Result "1-0"]
[WhiteElo "2560"]
[BlackElo "2115"]
[TimeControl "180+1"]
[EndTime "14:08:42 PDT"]
[Termination "HPanesso won on time"]

1. d4 {[%clk 0:02:59.7]} 1... e5 {[%clk 0:03:00.9]} 2. dxe5 {[%clk 0:02:58.4]}
2... Nc6 {[%clk 0:03:01.3]} 3. Nf3 {[%clk 0:02:56.5]} 3... Qe7 {[%clk
0:03:01.5]} 4. Bf4 {[%clk 0:02:35]} 4... Qb4+ {[%clk 0:03:00.2]} 5. Bd2 {[%clk
0:02:33.2]} 5... Qxb2 {[%clk 0:03:00.2]} 6. Nc3 {[%clk 0:02:32.2]} 6... Bb4
{[%clk 0:03:00.1]} 7. Rb1 {[%clk 0:02:20.4]} 7... Qxc3 {[%clk 0:02:59.9]} 8.
Bxc3 {[%clk 0:02:18]} 8... Bxc3+ {[%clk 0:03:00.8]} 9. Nd2 {[%clk 0:02:16.9]}
9... Bxe5 {[%clk 0:03:00.8]} 10. e3 {[%clk 0:02:15.4]} 10... Nf6 {[%clk
0:03:00.1]} 11. Bd3 {[%clk 0:02:14.6]} 11... O-O {[%clk 0:02:59.4]} 12. O-O
{[%clk 0:02:14]} 12... h6 {[%clk 0:02:59]} 13. f4 {[%clk 0:02:08.7]} 13... Bc3
{[%clk 0:02:58.7]} 14. Ne4 {[%clk 0:02:05.2]} 14... Nxe4 {[%clk 0:02:52.4]} 15.
Bxe4 {[%clk 0:02:04.8]} 15... Ba5 {[%clk 0:02:52.3]} 16. Bd5 {[%clk 0:02:01.5]}
16... Bb6 {[%clk 0:02:50.8]} 17. Qf3 {[%clk 0:01:57.1]} 17... Ne7 {[%clk
0:02:50]} 18. Bb3 {[%clk 0:01:55.2]} 18... Nf5 {[%clk 0:02:49]} 19. Rfe1 {[%clk
0:01:47.4]} 19... c6 {[%clk 0:02:41.7]} 20. g4 {[%clk 0:01:38.2]} 20... Nxe3
{[%clk 0:02:28.6]} 21. Bxf7+ {[%clk 0:01:31.2]} 21... Rxf7 {[%clk 0:02:06.5]}
22. Rxb6 {[%clk 0:01:24.5]} 22... axb6 {[%clk 0:02:04.8]} 23. Qxe3 {[%clk
0:01:24.2]} 23... d5 {[%clk 0:02:03.9]} 24. Qxb6 {[%clk 0:01:18.9]} 24... Bxg4
{[%clk 0:02:02.3]} 25. Qd4 {[%clk 0:01:11.4]} 25... Rxa2 {[%clk 0:01:55.2]} 26.
Re8+ {[%clk 0:01:09.4]} 26... Kh7 {[%clk 0:01:19.3]} 27. Re5 {[%clk 0:01:08.4]}
27... Bf5 {[%clk 0:01:11]} 28. c3 {[%clk 0:00:47.5]} 28... Be4 {[%clk
0:00:51.7]} 29. Qe3 {[%clk 0:00:34.3]} 29... Rg2+ {[%clk 0:00:47.3]} 30. Kf1
{[%clk 0:00:33.6]} 30... Rg4 {[%clk 0:00:45.4]} 31. Ke1 {[%clk 0:00:19.1]} 31...
Rgxf4 {[%clk 0:00:42.6]} 32. Qh3 {[%clk 0:00:15.8]} 32... Rf2 {[%clk 0:00:33.1]}
33. Re8 {[%clk 0:00:13.5]} 33... Bf5 {[%clk 0:00:17.5]} 34. Qe3 {[%clk
0:00:12.1]} 34... Ra2 {[%clk 0:00:15.8]} 35. Rb8 {[%clk 0:00:10.5]} 35... Rxh2
{[%clk 0:00:13.7]} 36. Qe8 {[%clk 0:00:10.4]} 36... Rh1+ {[%clk 0:00:11.8]} 37.
Kd2 {[%clk 0:00:10.5]} 37... Rh2+ {[%clk 0:00:11.2]} 38. Ke3 {[%clk 0:00:10.9]}
38... Kg6 {[%clk 0:00:10.3]} 39. Kd4 {[%clk 0:00:10.5]} 39... Rh4+ {[%clk
0:00:10.2]} 40. Kc5 {[%clk 0:00:10.5]} 40... Rc4+ {[%clk 0:00:10.5]} 41. Kd6
{[%clk 0:00:10.9]} 41... Re4 {[%clk 0:00:10.6]} 42. Qd8 {[%clk 0:00:09.5]} 42...
Re6+ {[%clk 0:00:09.7]} 43. Kc5 {[%clk 0:00:09.6]} 43... Be4 {[%clk 0:00:09.5]}
44. Qh4 {[%clk 0:00:08.8]} 44... Rf3 {[%clk 0:00:09]} 45. c4 {[%clk 0:00:07.5]}
45... Rc3 {[%clk 0:00:08.5]} 46. Qg4+ {[%clk 0:00:07.9]} 46... Kf7 {[%clk
0:00:08.3]} 47. Rxb7+ {[%clk 0:00:07.6]} 47... Re7 {[%clk 0:00:07.6]} 48. Qf4+
{[%clk 0:00:07.7]} 48... Ke8 {[%clk 0:00:06.3]} 49. Qb8+ {[%clk 0:00:07.6]}
49... Kf7 {[%clk 0:00:06.6]} 50. Qf4+ {[%clk 0:00:08]} 50... Ke8 {[%clk
0:00:06.7]} 51. Rxe7+ {[%clk 0:00:08.6]} 51... Kxe7 {[%clk 0:00:06.8]} 52. Qe5+
{[%clk 0:00:09.5]} 52... Kf8 {[%clk 0:00:06.8]} 53. Qxc3 {[%clk 0:00:10.4]}
53... Kf7 {[%clk 0:00:05.5]} 54. Qe5 {[%clk 0:00:10]} 54... g5 {[%clk
0:00:05.1]} 55. Kd6 {[%clk 0:00:10]} 55... Kg6 {[%clk 0:00:04.8]} 56. c5 {[%clk
0:00:09.5]} 56... h5 {[%clk 0:00:03.9]} 57. Kxc6 {[%clk 0:00:09]} 57... h4
{[%clk 0:00:03.4]} 58. Kd6 {[%clk 0:00:09.1]} 58... g4 {[%clk 0:00:03.2]} 59.
Qf4 {[%clk 0:00:09.2]} 59... Kh5 {[%clk 0:00:02]} 60. c6 {[%clk 0:00:09.3]}
60... g3 {[%clk 0:00:02.1]} 61. c7 {[%clk 0:00:09.2]} 61... g2 {[%clk
0:00:02.3]} 62. Qf2 {[%clk 0:00:09.5]} 1-0

[Event "Late-Titled-Tuesday-Blitz-July-09-2024"]
[Site "Chess.com"]
[Date "2024.07.09"]
[Round "1"]
[White "evgchess5"]
[Black "Romadk"]
[Result "1-0"]
[WhiteElo "2854"]
[BlackElo "2456"]
[TimeControl "180+1"]
[EndTime "14:08:46 PDT"]
[Termination "evgchess5 won by resignation"]

1. e4 {[%clk 0:02:58]} 1... Nf6 {[%clk 0:02:59.4]} 2. e5 {[%clk 0:02:57.8]} 2...
Nd5 {[%clk 0:02:59.5]} 3. d4 {[%clk 0:02:58.4]} 3... d6 {[%clk 0:02:59.6]} 4.
Nf3 {[%clk 0:02:57.2]} 4... g6 {[%clk 0:02:59.5]} 5. Bc4 {[%clk 0:02:56.2]} 5...
Nb6 {[%clk 0:02:59]} 6. Bb3 {[%clk 0:02:56.8]} 6... Bg7 {[%clk 0:02:59.6]} 7.
Ng5 {[%clk 0:02:57.3]} 7... e6 {[%clk 0:02:59.9]} 8. Qf3 {[%clk 0:02:58]} 8...
Qe7 {[%clk 0:02:58]} 9. Ne4 {[%clk 0:02:56.5]} 9... dxe5 {[%clk 0:02:57.8]} 10.
Bg5 {[%clk 0:02:56.1]} 10... Qb4+ {[%clk 0:02:57.5]} 11. c3 {[%clk 0:02:54.5]}
11... Qa5 {[%clk 0:02:57.8]} 12. Bf6 {[%clk 0:02:53.9]} 12... O-O {[%clk
0:02:50.5]} 13. Bxg7 {[%clk 0:02:53.5]} 13... Kxg7 {[%clk 0:02:51.4]} 14. Qf6+
{[%clk 0:02:53.9]} 14... Kg8 {[%clk 0:02:51.2]} 15. Qxe5 {[%clk 0:02:52.3]}
15... Qxe5 {[%clk 0:02:50.1]} 16. dxe5 {[%clk 0:02:53.2]} 16... Nc6 {[%clk
0:02:48.4]} 17. f4 {[%clk 0:02:52.7]} 17... Na5 {[%clk 0:02:47.6]} 18. Nbd2
{[%clk 0:02:51.9]} 18... Nxb3 {[%clk 0:02:46.2]} 19. axb3 {[%clk 0:02:51.6]}
19... Bd7 {[%clk 0:02:44.2]} 20. c4 {[%clk 0:02:43.5]} 20... Bc6 {[%clk
0:02:43.3]} 21. Ke2 {[%clk 0:02:44.1]} 21... a6 {[%clk 0:02:39.2]} 22. Ke3
{[%clk 0:02:44.1]} 22... Kg7 {[%clk 0:02:32]} 23. Rhd1 {[%clk 0:02:40]} 23... h5
{[%clk 0:02:26.2]} 24. g3 {[%clk 0:02:39]} 24... Nc8 {[%clk 0:02:22.1]} 25. Nf3
{[%clk 0:02:11.4]} 25... Ne7 {[%clk 0:02:17.7]} 26. Nd4 {[%clk 0:02:11.8]} 26...
Rfd8 {[%clk 0:02:05.7]} 27. Nc5 {[%clk 0:01:56.6]} 27... Nf5+ {[%clk 0:01:33.5]}
28. Nxf5+ {[%clk 0:01:56]} 28... gxf5 {[%clk 0:01:29.6]} 29. b4 {[%clk
0:01:54.2]} 29... Kf8 {[%clk 0:01:21]} 30. Nb3 {[%clk 0:01:22.5]} 30... Ke7
{[%clk 0:01:16.4]} 31. Nd4 {[%clk 0:01:16.3]} 31... Be4 {[%clk 0:01:13.3]} 32.
Ne2 {[%clk 0:01:16.1]} 32... h4 {[%clk 0:01:05.5]} 33. g4 {[%clk 0:01:03.3]}
33... Bc2 {[%clk 0:00:58.3]} 34. Rxd8 {[%clk 0:01:01]} 34... Rxd8 {[%clk
0:00:59.2]} 35. Nd4 {[%clk 0:01:01.4]} 35... Be4 {[%clk 0:00:50.9]} 36. gxf5
{[%clk 0:01:00.1]} 36... Bxf5 {[%clk 0:00:50.3]} 37. b5 {[%clk 0:00:44.3]} 37...
axb5 {[%clk 0:00:32.3]} 38. cxb5 {[%clk 0:00:44.2]} 38... Bh3 {[%clk 0:00:21.7]}
39. Ra7 {[%clk 0:00:37.5]} 39... Bg2 {[%clk 0:00:21.4]} 40. Ra1 {[%clk
0:00:32.1]} 40... Bd5 {[%clk 0:00:20.4]} 41. Rc1 {[%clk 0:00:30.3]} 41... Kd7
{[%clk 0:00:18.4]} 42. Rg1 {[%clk 0:00:30.2]} 42... Rh8 {[%clk 0:00:13.7]} 43.
Rg7 {[%clk 0:00:28.2]} 43... Ke7 {[%clk 0:00:14.1]} 44. f5 {[%clk 0:00:28.4]}
44... Kf8 {[%clk 0:00:12.1]} 45. f6 {[%clk 0:00:26.9]} 45... Rh5 {[%clk
0:00:11.3]} 46. Kf4 {[%clk 0:00:26.9]} 46... Rh8 {[%clk 0:00:09.2]} 47. Rg1
{[%clk 0:00:25.3]} 47... Rh5 {[%clk 0:00:07.2]} 48. Rc1 {[%clk 0:00:23.1]} 48...
c6 {[%clk 0:00:04.6]} 49. bxc6 {[%clk 0:00:22.8]} 49... bxc6 {[%clk 0:00:05.5]}
50. b4 {[%clk 0:00:22.5]} 50... h3 {[%clk 0:00:04.5]} 51. Rg1 {[%clk 0:00:21.5]}
51... Ke8 {[%clk 0:00:04.1]} 52. Rg8+ {[%clk 0:00:18.7]} 52... Kd7 {[%clk
0:00:04.2]} 53. Rg7 {[%clk 0:00:16.8]} 53... Ke8 {[%clk 0:00:03.6]} 54. Rg5
{[%clk 0:00:15.8]} 54... Rh4+ {[%clk 0:00:03.5]} 55. Rg4 {[%clk 0:00:16.1]}
55... Rxg4+ {[%clk 0:00:03.2]} 56. Kxg4 {[%clk 0:00:15.9]} 56... Bg2 {[%clk
0:00:03.5]} 57. Ne2 {[%clk 0:00:15]} 57... Kd7 {[%clk 0:00:03.2]} 58. Kf4 {[%clk
0:00:14.7]} 58... Kc7 {[%clk 0:00:02.8]} 59. Kg4 {[%clk 0:00:14.4]} 59... Kb6
{[%clk 0:00:03.2]} 60. Nf4 {[%clk 0:00:15.1]} 60... Kb5 {[%clk 0:00:02.7]} 61.
Nxe6 {[%clk 0:00:15]} 61... Kxb4 {[%clk 0:00:03.3]} 62. Ng5 {[%clk 0:00:15.1]}
62... c5 {[%clk 0:00:03.3]} 63. e6 {[%clk 0:00:14.3]} 63... c4 {[%clk
0:00:03.9]} 64. exf7 {[%clk 0:00:14.1]} 64... c3 {[%clk 0:00:04.3]} 65. f8=Q+
{[%clk 0:00:14.4]} 65... Kb3 {[%clk 0:00:05.2]} 66. Qc5 {[%clk 0:00:14.8]} 66...
c2 {[%clk 0:00:06.1]} 67. f7 {[%clk 0:00:15.1]} 67... Kb2 {[%clk 0:00:06.6]} 68.
f8=Q {[%clk 0:00:14.7]} 68... c1=Q {[%clk 0:00:06.5]} 69. Qff2+ {[%clk
0:00:14.3]} 1-0

[Event "Late-Titled-Tuesday-Blitz-July-09-2024"]
[Site "Chess.com"]
[Date "2024.07.09"]
[Round "1"]
[White "Paladin61"]
[Black "Jenia84"]
[Result "1-0"]
[WhiteElo "2728"]
[BlackElo "2400"]
[TimeControl "180+1"]
[EndTime "14:08:47 PDT"]
[Termination "Paladin61 won by resignation"]

1. c4 {[%clk 0:02:59.1]} 1... e5 {[%clk 0:02:56.6]} 2. Nc3 {[%clk 0:02:55.1]}
2... Nf6 {[%clk 0:02:55.8]} 3. Nf3 {[%clk 0:02:53.3]} 3... d6 {[%clk 0:02:55.7]}
4. g3 {[%clk 0:02:47.6]} 4... g6 {[%clk 0:02:56]} 5. Bg2 {[%clk 0:02:45.7]} 5...
Bg7 {[%clk 0:02:56.6]} 6. d4 {[%clk 0:02:44.3]} 6... exd4 {[%clk 0:02:55.1]} 7.
Nxd4 {[%clk 0:02:44.3]} 7... O-O {[%clk 0:02:55.6]} 8. O-O {[%clk 0:02:44.3]}
8... Nbd7 {[%clk 0:02:47.6]} 9. e4 {[%clk 0:02:36.4]} 9... Nb6 {[%clk
0:02:40.2]} 10. b3 {[%clk 0:02:34.6]} 10... Bg4 {[%clk 0:02:40.1]} 11. Qd2
{[%clk 0:02:24.9]} 11... c6 {[%clk 0:02:13.4]} 12. h3 {[%clk 0:02:14.8]} 12...
Bd7 {[%clk 0:02:11.7]} 13. Kh2 {[%clk 0:02:15.1]} 13... Qc7 {[%clk 0:02:10.5]}
14. Ba3 {[%clk 0:01:59.9]} 14... Rad8 {[%clk 0:02:05.7]} 15. Rad1 {[%clk
0:01:55.3]} 15... Rfe8 {[%clk 0:01:59]} 16. Rfe1 {[%clk 0:01:54]} 16... a6
{[%clk 0:01:57.6]} 17. Nc2 {[%clk 0:01:43.9]} 17... Nc8 {[%clk 0:01:48]} 18. f4
{[%clk 0:01:21.9]} 18... Nh5 {[%clk 0:01:27.5]} 19. Ne2 {[%clk 0:01:09.1]} 19...
c5 {[%clk 0:01:14.9]} 20. Ne3 {[%clk 0:01:07.9]} 20... Nf6 {[%clk 0:01:09.4]}
21. Nc3 {[%clk 0:01:04.9]} 21... Bc6 {[%clk 0:01:05.5]} 22. Qc2 {[%clk
0:01:00.4]} 22... b5 {[%clk 0:01:03.5]} 23. Bb2 {[%clk 0:00:58.9]} 23... Nb6
{[%clk 0:00:57]} 24. Ncd5 {[%clk 0:00:49.3]} 24... Nbxd5 {[%clk 0:00:52.8]} 25.
cxd5 {[%clk 0:00:45.3]} 25... Bb7 {[%clk 0:00:47.8]} 26. Bc3 {[%clk 0:00:37.9]}
26... Nh5 {[%clk 0:00:43.8]} 27. Bxg7 {[%clk 0:00:34.3]} 27... Kxg7 {[%clk
0:00:44.2]} 28. Qb2+ {[%clk 0:00:26.4]} 28... Kg8 {[%clk 0:00:43.1]} 29. Ng4
{[%clk 0:00:25.8]} 29... f6 {[%clk 0:00:28.9]} 30. Nxf6+ {[%clk 0:00:23.2]}
30... Nxf6 {[%clk 0:00:28.9]} 31. Qxf6 {[%clk 0:00:24.1]} 31... Qa5 {[%clk
0:00:23]} 32. Re2 {[%clk 0:00:14.6]} 32... c4 {[%clk 0:00:20.3]} 33. bxc4 {[%clk
0:00:12.9]} 33... bxc4 {[%clk 0:00:21.2]} 34. Rc1 {[%clk 0:00:13.3]} 34... Bxd5
{[%clk 0:00:07.2]} 35. Rec2 {[%clk 0:00:06.3]} 35... Bf7 {[%clk 0:00:06.8]} 36.
h4 {[%clk 0:00:06.3]} 36... Qc7 {[%clk 0:00:06.8]} 37. h5 {[%clk 0:00:05]} 37...
Qe7 {[%clk 0:00:06.8]} 38. Qd4 {[%clk 0:00:05.1]} 38... gxh5 {[%clk 0:00:06.5]}
39. Bf3 {[%clk 0:00:03.8]} 39... Qe6 {[%clk 0:00:05.3]} 40. Rg1 {[%clk
0:00:03.2]} 40... Qh6 {[%clk 0:00:04.9]} 41. Be2 {[%clk 0:00:03.3]} 41... Rf8
{[%clk 0:00:04.2]} 42. Bxc4 {[%clk 0:00:03.4]} 42... Bxc4 {[%clk 0:00:04.3]} 43.
Qxc4+ {[%clk 0:00:03.5]} 43... Kh8 {[%clk 0:00:03.6]} 44. Qd4+ {[%clk
0:00:03.7]} 44... Qg7 {[%clk 0:00:04]} 45. Qd5 {[%clk 0:00:03]} 45... Qf7 {[%clk
0:00:03]} 46. Qd4+ {[%clk 0:00:02.7]} 46... Qg7 {[%clk 0:00:03.3]} 47. Qd3
{[%clk 0:00:03.2]} 47... Qf7 {[%clk 0:00:03.5]} 48. Rc6 {[%clk 0:00:02.9]} 48...
Rc8 {[%clk 0:00:03.7]} 49. Rxd6 {[%clk 0:00:02.9]} 49... Qxa2+ {[%clk
0:00:03.2]} 50. Kh3 {[%clk 0:00:01.8]} 50... Qf7 {[%clk 0:00:03.8]} 51. Qd4+
{[%clk 0:00:02.3]} 51... Qg7 {[%clk 0:00:04]} 52. f5 {[%clk 0:00:03]} 52... Qxd4
{[%clk 0:00:02.6]} 53. Rxd4 {[%clk 0:00:03.9]} 53... Rfe8 {[%clk 0:00:01.4]} 54.
Ra1 {[%clk 0:00:04]} 54... Kg7 {[%clk 0:00:02.3]} 55. Rxa6 {[%clk 0:00:03]}
55... Rc7 {[%clk 0:00:02.9]} 56. Rad6 {[%clk 0:00:03.4]} 56... Rce7 {[%clk
0:00:03.3]} 57. Rd7 {[%clk 0:00:03.8]} 57... Rxd7 {[%clk 0:00:02.9]} 58. Rxd7+
{[%clk 0:00:04.7]} 58... Kf6 {[%clk 0:00:03.6]} 59. Rxh7 {[%clk 0:00:04.2]}
59... Rxe4 {[%clk 0:00:04]} 60. Rxh5 {[%clk 0:00:04.3]} 60... Re3 {[%clk
0:00:04.2]} 61. Kh4 {[%clk 0:00:04.2]} 61... Rf3 {[%clk 0:00:04.6]} 62. g4
{[%clk 0:00:04]} 62... Rf4 {[%clk 0:00:05.1]} 63. Rh6+ {[%clk 0:00:04.3]} 63...
Kg7 {[%clk 0:00:05.5]} 64. Rg6+ {[%clk 0:00:04.7]} 64... Kf7 {[%clk 0:00:05.7]}
65. Kg5 {[%clk 0:00:05.6]} 65... Rf1 {[%clk 0:00:06]} 66. Ra6 {[%clk 0:00:05.1]}
66... Rd1 {[%clk 0:00:05.3]} 67. Ra7+ {[%clk 0:00:05.3]} 67... Kg8 {[%clk
0:00:06.2]} 68. Kg6 {[%clk 0:00:05.7]} 68... Rd8 {[%clk 0:00:06.7]} 69. f6
{[%clk 0:00:05.8]} 69... Rf8 {[%clk 0:00:07.1]} 70. Rg7+ {[%clk 0:00:05.9]}
70... Kh8 {[%clk 0:00:07.4]} 71. Rh7+ {[%clk 0:00:06.7]} 71... Kg8 {[%clk
0:00:07.7]} 72. f7+ {[%clk 0:00:07.6]} 1-0

[Event "Late-Titled-Tuesday-Blitz-July-09-2024"]
[Site "Chess.com"]
[Date "2024.07.09"]
[Round "1"]
[White "Bauman_Guy"]
[Black "Lady_Nika"]
[Result "1-0"]
[WhiteElo "2933"]
[BlackElo "2490"]
[TimeControl "180+1"]
[EndTime "14:08:48 PDT"]
[Termination "Bauman_Guy won on time"]

1. e4 {[%clk 0:03:00.9]} 1... c5 {[%clk 0:02:57.8]} 2. Nf3 {[%clk 0:03:01]} 2...
e6 {[%clk 0:02:57.4]} 3. d4 {[%clk 0:03:01.3]} 3... cxd4 {[%clk 0:02:57.7]} 4.
Nxd4 {[%clk 0:03:02.2]} 4... a6 {[%clk 0:02:58.2]} 5. Bd3 {[%clk 0:03:02]} 5...
Nc6 {[%clk 0:02:58.5]} 6. Nxc6 {[%clk 0:03:00.5]} 6... bxc6 {[%clk 0:02:57.9]}
7. Nd2 {[%clk 0:03:00]} 7... d5 {[%clk 0:02:57.3]} 8. Qe2 {[%clk 0:02:59.7]}
8... Nf6 {[%clk 0:02:57.3]} 9. O-O {[%clk 0:02:57.3]} 9... Be7 {[%clk
0:02:57.3]} 10. Nf3 {[%clk 0:02:56.3]} 10... dxe4 {[%clk 0:02:53.5]} 11. Bxe4
{[%clk 0:02:56.2]} 11... Nxe4 {[%clk 0:02:53.9]} 12. Qxe4 {[%clk 0:02:56.7]}
12... Qd5 {[%clk 0:02:54.5]} 13. Qe2 {[%clk 0:02:55.7]} 13... Qh5 {[%clk
0:02:36.6]} 14. Re1 {[%clk 0:02:54.1]} 14... O-O {[%clk 0:02:34.8]} 15. Ne5
{[%clk 0:02:49]} 15... Qxe2 {[%clk 0:02:33.4]} 16. Rxe2 {[%clk 0:02:49.9]} 16...
Bb7 {[%clk 0:02:31]} 17. Bd2 {[%clk 0:02:37.7]} 17... Rfd8 {[%clk 0:02:19]} 18.
c4 {[%clk 0:02:36.7]} 18... Bf6 {[%clk 0:02:13.1]} 19. Bc3 {[%clk 0:02:36.5]}
19... Bxe5 {[%clk 0:02:07]} 20. Rxe5 {[%clk 0:02:36]} 20... Rd3 {[%clk
0:02:07.2]} 21. h3 {[%clk 0:02:30.1]} 21... Rad8 {[%clk 0:02:07]} 22. Ree1
{[%clk 0:02:25.6]} 22... Bc8 {[%clk 0:01:53.8]} 23. a4 {[%clk 0:02:16.4]} 23...
f6 {[%clk 0:01:51.5]} 24. f4 {[%clk 0:02:16.6]} 24... Kf7 {[%clk 0:01:51.3]} 25.
Kf2 {[%clk 0:02:14.8]} 25... c5 {[%clk 0:01:47.3]} 26. Ra3 {[%clk 0:02:02.6]}
26... Bb7 {[%clk 0:01:46.4]} 27. Rb3 {[%clk 0:02:00.4]} 27... Bc6 {[%clk
0:01:45.4]} 28. a5 {[%clk 0:01:58.9]} 28... R8d6 {[%clk 0:01:31]} 29. Rb6 {[%clk
0:01:56.4]} 29... Ba4 {[%clk 0:01:24.5]} 30. Re3 {[%clk 0:01:34.2]} 30... Rxe3
{[%clk 0:00:53.6]} 31. Rxd6 {[%clk 0:01:04.3]} 31... Re4 {[%clk 0:00:52.7]} 32.
g3 {[%clk 0:01:00.2]} 32... Rxc4 {[%clk 0:00:49.7]} 33. Rxa6 {[%clk 0:01:00.8]}
33... Bc2 {[%clk 0:00:40.4]} 34. Ke3 {[%clk 0:00:55.4]} 34... Be4 {[%clk
0:00:38.2]} 35. Ra7+ {[%clk 0:00:48.3]} 35... Kg6 {[%clk 0:00:36.2]} 36. Rc7
{[%clk 0:00:49.2]} 36... Bd5 {[%clk 0:00:32.9]} 37. g4 {[%clk 0:00:42.6]} 37...
Re4+ {[%clk 0:00:28.7]} 38. Kd3 {[%clk 0:00:43]} 38... c4+ {[%clk 0:00:27.5]}
39. Kd2 {[%clk 0:00:39.1]} 39... Rxf4 {[%clk 0:00:27.7]} 40. a6 {[%clk
0:00:39.6]} 40... Rf2+ {[%clk 0:00:27.1]} 41. Ke1 {[%clk 0:00:32.9]} 41... Rh2
{[%clk 0:00:27.1]} 42. a7 {[%clk 0:00:33.4]} 42... Rxh3 {[%clk 0:00:20]} 43. Rd7
{[%clk 0:00:33.7]} 43... Be4 {[%clk 0:00:20.2]} 44. Rd4 {[%clk 0:00:31.8]} 44...
Bb7 {[%clk 0:00:19.7]} 45. Rxc4 {[%clk 0:00:31.8]} 45... Rh1+ {[%clk 0:00:19.7]}
46. Kf2 {[%clk 0:00:32]} 46... Ra1 {[%clk 0:00:20]} 47. Bd4 {[%clk 0:00:27.7]}
47... Bd5 {[%clk 0:00:16.8]} 48. Rc7 {[%clk 0:00:26.1]} 48... Ra2 {[%clk
0:00:16.8]} 49. Ke3 {[%clk 0:00:20.6]} 49... Ra4 {[%clk 0:00:10.8]} 50. Rd7
{[%clk 0:00:17.4]} 50... Bh1 {[%clk 0:00:09.2]} 51. Rd8 {[%clk 0:00:10.1]} 51...
e5 {[%clk 0:00:09.3]} 52. Bc5 {[%clk 0:00:09]} 52... Kg5 {[%clk 0:00:06.9]} 53.
Rd7 {[%clk 0:00:06.8]} 53... Kxg4 {[%clk 0:00:07]} 54. Rxg7+ {[%clk 0:00:06.9]}
54... Kf5 {[%clk 0:00:07.4]} 55. Rxh7 {[%clk 0:00:07.5]} 55... Bd5 {[%clk
0:00:06.8]} 56. Rd7 {[%clk 0:00:06.9]} 56... Bc6 {[%clk 0:00:06.5]} 57. Rc7
{[%clk 0:00:06.4]} 57... Bd5 {[%clk 0:00:06.7]} 58. Rd7 {[%clk 0:00:06.5]} 58...
Bc6 {[%clk 0:00:07.1]} 59. Rd6 {[%clk 0:00:07.2]} 59... Bh1 {[%clk 0:00:05.7]}
60. Kd3 {[%clk 0:00:07.8]} 60... Bg2 {[%clk 0:00:04.8]} 61. Kc3 {[%clk 0:00:08]}
61... Kg6 {[%clk 0:00:04.1]} 62. b3 {[%clk 0:00:08.3]} 62... Ra1 {[%clk
0:00:04.1]} 63. Rd8 {[%clk 0:00:07.7]} 63... f5 {[%clk 0:00:03.9]} 64. Rg8+
{[%clk 0:00:07.9]} 64... Kf7 {[%clk 0:00:03.3]} 65. Rxg2 {[%clk 0:00:08.8]}
65... e4 {[%clk 0:00:03.5]} 66. Kd4 {[%clk 0:00:08.5]} 66... Rd1+ {[%clk
0:00:03.6]} 67. Ke5 {[%clk 0:00:08.3]} 1-0